[Event "105th British-ch 2018"]
[Site "Hull"]
[Date "2018.08.02"]
[Round "6"]
[White "Thurlow, Kevin J"]
[Black "Jarmany, John"]
[Result "1/2-1/2"]
[ECO "B10"]
[WhiteElo "2030"]
[BlackElo "2110"]
[Annotator "NA"]
[PlyCount "61"]
[EventDate "2018.07.28"]
[EventType "swiss"]
[EventCountry "GBR"]
[SourceTitle "playchess.com"]
[Source "ChessBase"]
[SourceQuality "1"]
[TimeControl "40/5400+30:1800+30"]

1. c4 {[%emt 0:00:00]} c6 {[%emt 0:00:05]} 2. e4 {[%emt 0:00:00]} d5 {[%emt 0:00:04]} 3. exd5 {[%emt 0:00:00]} cxd5 {[%emt 0:00:05]} 4. cxd5 {[%emt 0:00:11]} Nf6 {[%emt 0:00:03]} 5. Nc3 {[%emt 0:00:08]} Nxd5 {[%emt 0:00:43]} 6. Bc4 {[%emt 0:00:55]} Nb6 {[%emt 0:00:17]} 7. Bb3 {[%emt 0:00:14]} Nc6 {[%emt 0:00:23]} 8. Nf3 {[%emt 0:00:51]} Bf5 {[%emt 0:00:10]} 9. d4 {[%emt 0:00:42]} e6 {[%emt 0:00:05]} 10. O-O {[%emt 0:00:13]} Be7 {[%emt 0:00:08]} 11. Bf4 {[%emt 0:05:37]} O-O {[%emt 0:00:22]} 12. d5 {[%emt 0:03:41]} Nxd5 {[%emt 0:01:39]} 13. Nxd5 {[%emt 0:02:15]} exd5 {[%emt 0:00:04]} 14. Qxd5 {[%emt 0:00:20]} Qxd5 {[%emt 0:00:30]} 15. Bxd5 {[%emt 0:00:08]} Bf6 {[%emt 0:03:07]} 16. Bxc6 {[%emt 0:00:33]} bxc6 {[%emt 0:00:02]} 17. Rac1 {[%emt 0:00:13]} Bxb2 {[%emt 0:03:54]} 18. Rxc6 {[%emt 0:00:11]} Be4 {[%emt 0:00:13]} 19. Rc7 {[%emt 0:00:16]} Bxf3 {[%emt 0:02:13]} 20. gxf3 {[%emt 0:00:02]} Bd4 {[%emt 0:29:09]} 21. Rd1 {[%emt 0:02:48]} Rfd8 {[%emt 0:00:26]} 22. Be3 {[%emt 0:00:49]} Bb6 {[%emt 0:06:12]} 23. Rxd8+ {[%emt 0:00:24]} Rxd8 {[%emt 0:00:03]} 24. Bxb6 {[%emt 0:00:15]} axb6 {[%emt 0:00:04]} 25. Rb7 {[%emt 0:00:17]} Ra8 {[%emt 0:00:08]} 26. Rxb6 {[%emt 0:00:08]} g6 {[%emt 0:00:02]} 27. Rb2 {[%emt 0:00:15]} Ra3 {[%emt 0:00:02]} 28. Kg2 {[%emt 0:00:38]} Kg7 {[%emt 0:00:01]} 29. Kg3 {[%emt 0:00:52]} h5 {[%emt 0:01:04]} 30. h4 {[%emt 0:01:52]} Kf6 {[%emt 0:04:41]} 31. Kf4 {[%emt 0:05:50] Ke5+ [%emt 00:05:54] Ke4+} 1/2-1/2

[Event "105th British-ch 2018"]
[Site "Hull"]
[Date "2018.08.02"]
[Round "6"]
[White "Jamroz, Krzysztof"]
[Black "Jackson, Sheila"]
[Result "0-1"]
[ECO "C10"]
[WhiteElo "2026"]
[BlackElo "2072"]
[Annotator "NA"]
[PlyCount "82"]
[EventDate "2018.07.28"]
[EventType "swiss"]
[EventCountry "GBR"]
[SourceTitle "playchess.com"]
[Source "ChessBase"]
[SourceQuality "1"]
[TimeControl "40/5400+30:1800+30"]

1. e4 {[%emt 0:00:00]} e6 {[%emt 0:00:00]} 2. d4 {[%emt 0:00:00]} d5 {[%emt 0:00:00]} 3. Nd2 {[%emt 0:00:30]} dxe4 {[%emt 0:10:23]} 4. Nxe4 {[%emt 0:00:11]} Nf6 {[%emt 0:00:06]} 5. Bd3 {[%emt 0:01:09]} Nbd7 {[%emt 0:05:03]} 6. Nf3 {[%emt 0:02:09]} Be7 {[%emt 0:04:23]} 7. O-O {[%emt 0:01:10]} Nxe4 {[%emt 0:01:51]} 8. Bxe4 {[%emt 0:00:06]} Nf6 {[%emt 0:00:10]} 9. Bd3 {[%emt 0:00:06]} O-O {[%emt 0:00:11]} 10. Qe2 $14 {[%emt 0:00:47]} b6 {[%emt 0:09:53]} 11. Rd1 {[%emt 0:02:05]} Bb7 {[%emt 0:00:49]} 12. c4 {[%emt 0:04:48]} a5 {[%emt 0:01:47]} 13. Bf4 {[%emt 0:02:15]} Kh8 {[%emt 0:04:13]} 14. Rac1 {[%emt 0:05:20]} Bxf3 {[%emt 0:09:49]} 15. Qxf3 {[%emt 0:00:06]} Qxd4 {[%emt 0:02:33]} 16. Bxh7 {[%emt 0:00:22]} Qc5 {[%emt 0:00:39]} 17. Bb1 {[%emt 0:03:57]} Rad8 {[%emt 0:02:36]} 18. Qh3+ {[%emt 0:35:41]} Kg8 {[%emt 0:01:22]} 19. Rxd8 {[%emt 0:01:54]} Rxd8 {[%emt 0:02:02]} 20. g4 {[%emt 0:03:07]} g6 {[%emt 0:15:22]} 21. b3 {[%emt 0:20:54]} Ne8 {[%emt 0:09:09]} 22. Re1 {[%emt 0:01:46]} Bf6 {[%emt 0:00:57]} 23. g5 {[%emt 0:02:50]} Bd4 {[%emt 0:06:41]} 24. Bxg6 {[%emt 0:02:51]} fxg6 {[%emt 0:00:55]} 25. Qxe6+ {[%emt 0:01:08]} Kh7 {[%emt 0:04:27]} 26. Qh3+ {[%emt 0:02:09]} Kg8 {[%emt 0:00:22]} 27. Re2 {[%emt 0:02:03]} Qf5 {[%emt 0:01:08]} 28. Qg3 {[%emt 0:00:29]} Nd6 {[%emt 0:03:39]} 29. h4 {[%emt 0:00:28]} Rf8 {[%emt 0:01:41]} 30. Bxd6 {[%emt 0:01:12]} cxd6 {[%emt 0:00:01]} 31. Kg2 {[%emt 0:00:28]} Be5 {[%emt 0:00:46]} 32. Qe3 {[%emt 0:00:47]} Qg4+ {[%emt 0:00:20]} 33. Kf1 {[%emt 0:00:07]} Qxh4 {[%emt 0:00:08]} 34. Rd2 {[%emt 0:00:43]} Qf4 {[%emt 0:00:39]} 35. Qd3 {[%emt 0:00:50]} Qxg5 {[%emt 0:00:25]} 36. Qd5+ {[%emt 0:00:06]} Rf7 {[%emt 0:00:23]} 37. Rd3 {[%emt 0:00:27]} Kg7 {[%emt 0:00:15]} 38. Rh3 {[%emt 0:00:45]} Qf5 {[%emt 0:00:57]} 39. Qg2 {[%emt 0:02:01]} Qb1+ {[%emt 0:00:15]} 40. Ke2 {[%emt 0:00:01]} Qxa2+ {[%emt 0:00:33]} 41. Kd1 {[%emt 0:31:28]} Qxf2 {[%emt 0:30:33]} 0-1

[Event "105th British-ch 2018"]
[Site "Hull"]
[Date "2018.08.02"]
[Round "6"]
[White "Iyengar, Ilya"]
[Black "Tozer, Philip"]
[Result "1/2-1/2"]
[ECO "A47"]
[WhiteElo "2017"]
[BlackElo "2142"]
[Annotator "NA"]
[PlyCount "34"]
[EventDate "2018.07.28"]
[EventType "swiss"]
[EventCountry "GBR"]
[SourceTitle "playchess.com"]
[Source "ChessBase"]
[SourceQuality "1"]
[TimeControl "40/5400+30:1800+30"]

1. d4 {[%emt 0:00:00]} e6 {[%emt 0:00:00]} 2. Nf3 {[%emt 0:00:00]} Nf6 {[%emt 0:00:00]} 3. Bg5 {[%emt 0:00:05]} c5 {[%emt 0:00:00]} 4. e3 {[%emt 0:00:34]} cxd4 {[%emt 0:00:05]} 5. exd4 {[%emt 0:00:05]} b6 {[%emt 0:00:07]} 6. Bd3 {[%emt 0:01:14]} Bb7 {[%emt 0:00:06]} 7. O-O {[%emt 0:00:19]} Be7 {[%emt 0:00:21]} 8. Re1 {[%emt 0:05:11]} O-O {[%emt 0:00:39]} 9. Nbd2 {[%emt 0:06:18]} d6 {[%emt 0:00:43]} 10. c4 {[%emt 0:01:43]} Nbd7 {[%emt 0:01:10]} 11. a3 {[%emt 0:01:45]} h6 {[%emt 0:03:28]} 12. Bf4 {[%emt 0:09:43]} Re8 {[%emt 0:19:59]} 13. b4 {[%emt 0:15:08]} Bf8 {[%emt 0:03:03]} 14. Qb3 {[%emt 0:04:13]} Nh5 {[%emt 0:18:43]} 15. Be3 {[%emt 0:04:37]} Nhf6 {[%emt 0:03:43]} 16. Bf4 {[%emt 0:17:21]} Nh5 {[%emt 0:08:08]} 17. Be3 {[%emt 0:00:33]} Nhf6 {[%emt 0:01:02]} 1/2-1/2

[Event "105th British-ch 2018"]
[Site "Hull"]
[Date "2018.08.02"]
[Round "6"]
[White "Burke, Mitchell R"]
[Black "Wall, Tim P"]
[Result "0-1"]
[ECO "C34"]
[WhiteElo "1988"]
[BlackElo "2234"]
[Annotator "NA"]
[PlyCount "41"]
[EventDate "2018.07.28"]
[EventType "swiss"]
[EventCountry "GBR"]
[SourceTitle "playchess.com"]
[Source "ChessBase"]
[SourceQuality "1"]
[TimeControl "40/5400+30:1800+30"]

1. e4 {[%emt 0:00:00]} e5 {[%emt 0:00:34]} 2. f4 {[%emt 0:03:00]} Nc6 {[%emt 0:04:52]} 3. Bc4 {[%emt 0:06:39]} exf4 {[%emt 0:08:45]} 4. Nf3 {[%emt 0:04:02]} g5 {[%emt 0:15:38]} 5. O-O {[%emt 0:13:32]} d6 {[%emt 0:06:28]} 6. Nc3 {[%emt 0:19:00]} Bg7 {[%emt 0:02:23]} 7. d4 {[%emt 0:08:14]} h6 {[%emt 0:03:05]} 8. Nd5 {[%emt 0:13:30]} Nge7 {[%emt 0:03:27]} 9. c3 {[%emt 0:03:59]} Ng6 {[%emt 0:10:41]} 10. Qe2 {[%emt 0:09:01]} Bg4 {[%emt 0:05:59]} 11. h3 {[%emt 0:03:28]} Be6 {[%emt 0:00:15]} 12. Re1 {[%emt 0:05:13]} O-O {[%emt 0:11:42]} 13. Nh2 {[%emt 0:04:53]} Na5 {[%emt 0:01:53]} 14. Bd3 {[%emt 0:00:26]} c6 {[%emt 0:00:16]} 15. Nb4 {[%emt 0:00:40]} c5 {[%emt 0:01:22]} 16. Nc2 {[%emt 0:01:21]} c4 {[%emt 0:01:12]} 17. d5 {[%emt 0:00:49]} cxd3 {[%emt 0:00:22]} 18. Qxd3 {[%emt 0:00:01]} Ne5 {[%emt 0:00:28]} 19. Qe2 {[%emt 0:00:16]} Bd7 {[%emt 0:00:23]} 20. b4 {[%emt 0:00:21]} Nac4 {[%emt 0:00:18]} 21. Nd4 {[%emt 0:00:18]} 0-1

[Event "105th British-ch 2018"]
[Site "Hull"]
[Date "2018.08.03"]
[Round "7"]
[White "Mcshane, Luke J"]
[Black "Hebden, Mark"]
[Result "1/2-1/2"]
[ECO "C55"]
[WhiteElo "2669"]
[BlackElo "2423"]
[Annotator "RC"]
[PlyCount "72"]
[EventDate "2018.07.28"]
[EventType "swiss"]
[EventCountry "GBR"]
[SourceTitle "playchess.com"]
[Source "ChessBase"]
[SourceQuality "1"]
[TimeControl "40/5400+30:1800+30"]

1. e4 {[%emt 0:00:00]} e5 {[%emt 0:00:10]} 2. Nf3 {[%emt 0:00:00]} Nc6 {[%emt 0:00:10]} 3. Bc4 {[%emt 0:00:01]} Nf6 {[%emt 0:00:16]} 4. d3 {[%emt 0:00:05]} Be7 {[%emt 0:00:08]} 5. O-O {[%emt 0:00:06]} O-O {[%emt 0:00:07]} 6. Re1 {[%emt 0:00:08]} d6 {[%emt 0:00:05]} 7. c3 {[%emt 0:00:08]} Na5 {[%emt 0:01:56]} 8. Bb5 {[%emt 0:00:05]} a6 {[%emt 0:00:11]} 9. Ba4 {[%emt 0:00:04]} b5 {[%emt 0:00:08]} 10. Bc2 {[%emt 0:00:06]} c5 {[%emt 0:00:10]} 11. Nbd2 {[%emt 0:00:06]} Re8 {[%emt 0:05:43]} 12. Nf1 {[%emt 0:00:07]} h6 {[%emt 0:01:08]} 13. h3 {[%emt 0:01:20]} Bf8 {[%emt 0:00:29]} 14. Ne3 {[%emt 0:09:56]} Bb7 {[%emt 0:07:53]} 15. Nh2 {[%emt 0:07:51]} d5 {[%emt 0:04:27]} 16. Nhg4 {[%emt 0:02:04]} dxe4 {[%emt 0:02:46]} 17. Nxf6+ {[%emt 0:02:25]} Qxf6 {[%emt 0:00:17]} 18. dxe4 {[%emt 0:00:03]} Rad8 {[%emt 0:00:19]} 19. Qe2 {[%emt 0:05:43]} Bc8 {[%emt 0:06:50]} 20. a4 {[%emt 0:28:15]} b4 {[%emt 0:00:33]} 21. Nd5 {[%emt 0:00:03]} Qg6 {[%emt 0:02:55]} 22. Kh1 {[%emt 0:00:49]} Bb7 {[%emt 0:15:38]} 23. cxb4 {[%emt 0:21:43]} cxb4 {[%emt 0:01:22]} 24. Be3 {[%emt 0:00:27]} Rc8 {[%emt 0:02:50]} 25. Rad1 {[%emt 0:04:33]} Nc4 {[%emt 0:04:14]} 26. Bc1 {[%emt 0:00:31]} Nb6 {[%emt 0:07:12]} 27. Nxb6 {[%emt 0:00:57]} Qxb6 {[%emt 0:00:03]} 28. Bb3 {[%emt 0:00:10]} Rc7 {[%emt 0:02:46]} 29. Be3 {[%emt 0:03:45]} Bc5 {[%emt 0:00:29]} 30. Bxc5 {[%emt 0:00:24]} Qxc5 {[%emt 0:00:16]} 31. Rd3 {[%emt 0:01:35]} Bc8 {[%emt 0:06:13]} 32. Red1 {[%emt 0:01:02]} Be6 {[%emt 0:05:15]} 33. Kg1 {[%emt 0:07:53]} Bxb3 {[%emt 0:02:51]} 34. Rxb3 {[%emt 0:00:01]} Re6 {[%emt 0:05:29]} 35. Rf3 {[%emt 0:01:30]} Rd6 {[%emt 0:01:35]} 36. Kh2 {[%emt 0:00:43]} Rcd7 {[%emt 0:01:31]} 1/2-1/2

[Event "105th British-ch 2018"]
[Site "Hull"]
[Date "2018.08.03"]
[Round "7"]
[White "Emms, John M"]
[Black "Houska, Jovanka"]
[Result "1/2-1/2"]
[ECO "D02"]
[WhiteElo "2488"]
[BlackElo "2406"]
[Annotator "ChessBase"]
[PlyCount "46"]
[EventDate "2018.07.28"]
[EventType "swiss"]
[EventCountry "GBR"]
[SourceTitle "playchess.com"]
[Source "ChessBase"]
[SourceQuality "1"]
[TimeControl "40/5400+30:1800+30"]

1. d4 {[%emt 0:01:04]} d5 {[%emt 0:00:06]} 2. Nf3 {[%emt 0:01:35]} Nf6 {[%emt 0:00:21]} 3. Bf4 {[%emt 0:00:16]} c5 {[%emt 0:00:39]} 4. e3 {[%emt 0:00:17]} Nc6 {[%emt 0:00:29]} 5. Nbd2 {[%emt 0:00:08]} e6 {[%emt 0:00:04]} 6. c3 {[%emt 0:00:48]} Bd6 {[%emt 0:00:16]} 7. Bg3 {[%emt 0:00:44]} O-O {[%emt 0:01:56]} 8. Bd3 {[%emt 0:04:01]} b6 {[%emt 0:02:51]} 9. Qe2 {[%emt 0:01:36]} Bb7 {[%emt 0:02:46]} 10. Rd1 {[%emt 0:00:53]} Re8 {[%emt 0:09:44]} 11. Ne5 {[%emt 0:40:55]} Qc7 {[%emt 0:07:32]} 12. f4 {[%emt 0:07:02]} Ne7 {[%emt 0:03:15]} 13. Bh4 {[%emt 0:08:47]} Ne4 {[%emt 0:01:13]} 14. Nxe4 {[%emt 0:00:35]} dxe4 {[%emt 0:00:11]} 15. Bb5 {[%emt 0:00:17]} Nc6 {[%emt 0:18:13]} 16. O-O {[%emt 0:09:00]} a6 {[%emt 0:05:55]} 17. Ba4 {[%emt 0:00:03]} b5 {[%emt 0:04:56]} 18. Bc2 {[%emt 0:00:09]} Ne7 {[%emt 0:04:16]} 19. Bxe7 {[%emt 0:05:27]} Rxe7 {[%emt 0:01:31]} 20. Ng4 {[%emt 0:00:20]} cxd4 {[%emt 0:02:45]} 21. cxd4 {[%emt 0:01:08]} Bd5 {[%emt 0:00:48]} 22. Bb3 {[%emt 0:02:30]} Bxb3 {[%emt 0:03:54]} 23. axb3 {[%emt 0:00:03]} f5 {[%emt 0:01:13]} 1/2-1/2

[Event "105th British-ch 2018"]
[Site "Hull"]
[Date "2018.08.03"]
[Round "7"]
[White "Trent, Lawrence"]
[Black "Kolbus, Dietmar"]
[Result "1/2-1/2"]
[ECO "A03"]
[WhiteElo "2406"]
[BlackElo "2303"]
[Annotator "NA"]
[PlyCount "61"]
[EventDate "2018.07.28"]
[EventType "swiss"]
[EventCountry "GBR"]
[SourceTitle "playchess.com"]
[Source "ChessBase"]
[SourceQuality "1"]
[TimeControl "40/5400+30:1800+30"]

1. f4 {[%emt 0:00:12]} d5 {[%emt 0:00:49]} 2. Nf3 {[%emt 0:00:04]} g6 {[%emt 0:00:33]} 3. c4 {[%emt 0:00:41]} dxc4 {[%emt 0:03:40]} 4. e3 {[%emt 0:00:12]} Bg7 {[%emt 0:01:06]} 5. Bxc4 {[%emt 0:00:09]} Nf6 {[%emt 0:00:37]} 6. O-O {[%emt 0:02:23]} O-O {[%emt 0:00:05]} 7. Nc3 {[%emt 0:00:02]} c6 {[%emt 0:01:24]} 8. Ne5 {[%emt 0:07:44]} Nd5 {[%emt 0:02:15]} 9. d4 {[%emt 0:00:12]} Nb6 {[%emt 0:05:41]} 10. Bb3 {[%emt 0:01:18]} Qe8 {[%emt 0:07:45]} 11. e4 {[%emt 0:04:57]} N8d7 {[%emt 0:00:33]} 12. Be3 {[%emt 0:06:58]} Nxe5 {[%emt 0:04:08]} 13. fxe5 {[%emt 0:01:03]} e6 {[%emt 0:04:46]} 14. Qd2 {[%emt 0:07:10]} Nd7 {[%emt 0:02:56]} 15. Bh6 {[%emt 0:07:40]} Kh8 {[%emt 0:08:39]} 16. Rf3 {[%emt 0:03:41]} Bxh6 {[%emt 0:00:24]} 17. Qxh6 {[%emt 0:00:02]} Rg8 {[%emt 0:00:17]} 18. Raf1 {[%emt 0:05:17]} Rg7 {[%emt 0:00:07]} 19. Qg5 {[%emt 0:01:03]} b6 {[%emt 0:00:36]} 20. d5 {[%emt 0:20:08]} Ba6 {[%emt 0:11:06]} 21. dxe6 {[%emt 0:02:15]} fxe6 {[%emt 0:00:26]} 22. Rd1 {[%emt 0:00:43]} Qe7 {[%emt 0:00:52]} 23. Qxe7 {[%emt 0:16:49]} Rxe7 {[%emt 0:00:04]} 24. Rf6 {[%emt 0:00:05]} Nxe5 {[%emt 0:06:45]} 25. Rd6 {[%emt 0:00:11]} Rae8 {[%emt 0:05:21]} 26. Rfxe6 {[%emt 0:00:34]} Rxe6 {[%emt 0:00:26]} 27. Bxe6 {[%emt 0:02:33]} Kg7 {[%emt 0:01:30]} 28. h3 {[%emt 0:01:13]} Kf8 {[%emt 0:01:54]} 29. Bb3 {[%emt 0:00:06]} Ke7 {[%emt 0:01:02]} 30. Re6+ {[%emt 0:01:16]} Kd7 {[%emt 0:00:10]} 31. Rxe8 {[%emt 0:01:17]} 1/2-1/2

[Event "105th British-ch 2018"]
[Site "Hull"]
[Date "2018.08.03"]
[Round "7"]
[White "Roberson, Peter T"]
[Black "Zapolskis, Antanas J"]
[Result "1/2-1/2"]
[ECO "A35"]
[WhiteElo "2401"]
[BlackElo "2283"]
[Annotator "NA"]
[PlyCount "184"]
[EventDate "2018.07.28"]
[EventType "swiss"]
[EventCountry "GBR"]
[SourceTitle "playchess.com"]
[Source "ChessBase"]
[SourceQuality "1"]
[TimeControl "40/5400+30:1800+30"]

1. e4 {[%emt 0:00:00]} c5 {[%emt 0:00:00]} 2. Nf3 {[%emt 0:00:00]} Nc6 {[%emt 0:00:00]} 3. c3 {[%emt 0:00:00]} d6 {[%emt 0:00:25]} 4. d4 {[%emt 0:00:20]} Nf6 {[%emt 0:00:09]} 5. d5 {[%emt 0:00:25]} Nb8 {[%emt 0:00:17]} 6. Bd3 {[%emt 0:00:11]} g6 {[%emt 0:01:16]} 7. c4 {[%emt 0:00:25]} Bg7 {[%emt 0:00:42]} 8. h3 {[%emt 0:00:14]} O-O {[%emt 0:02:28]} 9. Nc3 {[%emt 0:00:13]} a6 {[%emt 0:08:16]} 10. O-O {[%emt 0:03:11]} Nbd7 {[%emt 0:05:32]} 11. a4 {[%emt 0:02:05]} Re8 {[%emt 0:14:04]} 12. Bf4 {[%emt 0:02:19]} Nh5 {[%emt 0:02:28]} 13. Bg5 {[%emt 0:06:49]} h6 {[%emt 0:00:34]} 14. Be3 {[%emt 0:01:03]} e5 {[%emt 0:18:25]} 15. dxe6 {[%emt 0:07:34]} Rxe6 {[%emt 0:00:10]} 16. Qd2 {[%emt 0:00:59]} Ne5 {[%emt 0:01:28]} 17. Be2 {[%emt 0:08:35]} Qf8 {[%emt 0:00:47]} 18. Nd5 {[%emt 0:04:18]} Rb8 {[%emt 0:00:27]} 19. Nxe5 {[%emt 0:18:35]} dxe5 {[%emt 0:00:12]} 20. Bxh5 {[%emt 0:05:59]} gxh5 {[%emt 0:00:08]} 21. Qe2 {[%emt 0:00:25]} Kh7 {[%emt 0:22:34]} 22. Qxh5 {[%emt 0:09:47]} b6 {[%emt 0:00:15]} 23. a5 {[%emt 0:07:18]} b5 {[%emt 0:00:34]} 24. b3 {[%emt 0:05:14]} Rg6 {[%emt 0:00:19]} 25. Rad1 {[%emt 0:02:02]} Rb7 {[%emt 0:00:46]} 26. Nb6 {[%emt 0:01:28]} Be6 {[%emt 0:00:51]} 27. Rd2 {[%emt 0:01:26]} f5 {[%emt 0:01:14]} 28. exf5 {[%emt 0:01:17]} Bxf5 {[%emt 0:00:10]} 29. Bxc5 {[%emt 0:02:45]} Qf7 {[%emt 0:00:08]} 30. Kh1 {[%emt 0:01:57]} Be4 {[%emt 0:00:47]} 31. f3 {[%emt 0:00:35]} Qf4 {[%emt 0:00:12]} 32. Rd8 {[%emt 0:04:32]} Bc6 {[%emt 0:00:36]} 33. Qxg6+ {[%emt 0:03:55]} Kxg6 {[%emt 0:00:06]} 34. Rd6+ {[%emt 0:00:01]} Kh7 {[%emt 0:00:23]} 35. Rxc6 {[%emt 0:00:01]} bxc4 {[%emt 0:00:27]} 36. bxc4 {[%emt 0:00:08]} e4 {[%emt 0:01:28]} 37. Nd5 {[%emt 0:00:40]} Qf5 {[%emt 0:04:04]} 38. Rb6 {[%emt 0:00:35]} Rf7 {[%emt 0:01:05]} 39. Bg1 {[%emt 0:01:33]} Qc8 {[%emt 0:00:29]} 40. f4 {[%emt 0:00:23]} Qxc4 {[%emt 0:00:25]} 41. Ne3 {[%emt 0:01:37]} Qe2 {[%emt 0:01:20]} 42. Rd1 {[%emt 0:10:02]} Bf8 {[%emt 0:04:19]} 43. Rc1 {[%emt 0:06:02]} Qd2 {[%emt 0:11:51]} 44. Rcc6 {[%emt 0:00:15]} Qxa5 {[%emt 0:00:18]} 45. Rxa6 {[%emt 0:01:02]} Qe1 {[%emt 0:00:09]} 46. Nd5 {[%emt 0:07:38]} Bg7 {[%emt 0:01:17]} 47. Kh2 {[%emt 0:01:27]} h5 {[%emt 0:10:34]} 48. Be3 {[%emt 0:03:29]} h4 {[%emt 0:02:36]} 49. Rg6 {[%emt 0:01:42]} Rf5 {[%emt 0:05:01]} 50. Rg4 {[%emt 0:01:54]} Rxd5 {[%emt 0:06:36]} 51. Ra7 {[%emt 0:00:01]} Qc3 {[%emt 0:00:11]} 52. Bf2 {[%emt 0:01:01]} Rd6 {[%emt 0:03:11]} 53. Raxg7+ {[%emt 0:00:22]} Qxg7 {[%emt 0:00:05]} 54. Rxg7+ {[%emt 0:00:01]} Kxg7 {[%emt 0:00:08]} 55. Bxh4 {[%emt 0:00:23]} Kg6 {[%emt 0:00:23]} 56. g4 {[%emt 0:01:11]} Rd3 {[%emt 0:00:07]} 57. Kg2 {[%emt 0:00:21]} Kf7 {[%emt 0:00:09]} 58. f5 {[%emt 0:00:28]} Rf3 {[%emt 0:00:05]} 59. Bg5 {[%emt 0:00:35]} Rb3 {[%emt 0:00:46]} 60. h4 {[%emt 0:00:08]} Kg7 {[%emt 0:01:08]} 61. h5 {[%emt 0:00:22]} Kf7 {[%emt 0:01:23]} 62. h6 {[%emt 0:00:13]} Kg8 {[%emt 0:01:56]} 63. Bf6 {[%emt 0:00:25]} Rf3 {[%emt 0:00:30]} 64. Be5 {[%emt 0:00:57]} Kh7 {[%emt 0:00:20]} 65. Bg7 {[%emt 0:00:01]} Kg8 {[%emt 0:00:55]} 66. Bf6 {[%emt 0:01:14]} Kh7 {[%emt 0:00:23]} 67. Bg5 {[%emt 0:00:10]} Ra3 {[%emt 0:00:32]} 68. Kf2 {[%emt 0:00:20]} Rf3+ {[%emt 0:00:08]} 69. Ke2 {[%emt 0:00:18]} Rg3 {[%emt 0:00:23]} 70. Bf4 {[%emt 0:00:28]} Rf3 {[%emt 0:01:48]} 71. Be3 {[%emt 0:00:35]} Kg8 {[%emt 0:00:34]} 72. g5 {[%emt 0:00:42]} Rxf5 {[%emt 0:00:12]} 73. g6 {[%emt 0:00:02]} Rh5 {[%emt 0:00:14]} 74. Kd2 {[%emt 0:00:30]} Rh3 {[%emt 0:00:24]} 75. Bf4 {[%emt 0:00:21]} Rd3+ {[%emt 0:00:27]} 76. Ke2 {[%emt 0:00:05]} Rh3 {[%emt 0:00:05]} 77. Kd2 {[%emt 0:00:23]} Rd3+ {[%emt 0:00:17]} 78. Ke1 {[%emt 0:00:07]} Rh3 {[%emt 0:00:09]} 79. Ke2 {[%emt 0:00:04]} Kf8 {[%emt 0:00:41]} 80. Bg5 {[%emt 0:01:00]} Rh5 {[%emt 0:01:30]} 81. Bc1 {[%emt 0:00:35]} Rh2+ {[%emt 0:01:03]} 82. Kd1 {[%emt 0:01:10]} Ke7 {[%emt 0:00:54]} 83. Bb2 {[%emt 0:01:57]} Rxh6 {[%emt 0:00:17]} 84. g7 {[%emt 0:00:09]} Kf7 {[%emt 0:00:07]} 85. Be5 {[%emt 0:00:23]} Rg6 {[%emt 0:00:17]} 86. Ke2 {[%emt 0:00:06]} Ke6 {[%emt 0:00:04]} 87. Ba1 {[%emt 0:00:56]} Kf5 {[%emt 0:00:13]} 88. Ke3 {[%emt 0:00:26]} Rg3+ {[%emt 0:01:37]} 89. Kf2 {[%emt 0:00:02]} Rg4 {[%emt 0:00:36]} 90. Ke3 {[%emt 0:00:03]} Rg3+ {[%emt 0:00:40]} 91. Kf2 {[%emt 0:00:25]} Kf4 92. Be5+ Kf5 {[%emt 0:00:00]} 1/2-1/2

[Event "105th British-ch 2018"]
[Site "Hull"]
[Date "2018.08.03"]
[Round "7"]
[White "Bradbury, Neil H"]
[Black "Pritchett, Craig William"]
[Result "0-1"]
[ECO "E11"]
[WhiteElo "2350"]
[BlackElo "2274"]
[Annotator "NA"]
[PlyCount "94"]
[EventDate "2018.07.28"]
[EventType "swiss"]
[EventCountry "GBR"]
[SourceTitle "playchess.com"]
[Source "ChessBase"]
[SourceQuality "1"]
[TimeControl "40/5400+30:1800+30"]

1. d4 {[%emt 0:00:00]} e6 {[%emt 0:00:00]} 2. Nf3 {[%emt 0:00:14]} Nf6 {[%emt 0:02:08]} 3. c4 {[%emt 0:00:27]} Bb4+ {[%emt 0:02:35]} 4. Nbd2 {[%emt 0:00:17]} O-O {[%emt 0:00:19]} 5. a3 {[%emt 0:01:14]} Be7 {[%emt 0:00:29]} 6. e4 {[%emt 0:04:14]} d6 {[%emt 0:01:52]} 7. b3 {[%emt 0:03:36]} e5 {[%emt 0:08:07]} 8. d5 {[%emt 0:12:12]} a5 {[%emt 0:09:58]} 9. Bd3 {[%emt 0:11:49]} Nh5 {[%emt 0:07:39]} 10. g3 {[%emt 0:17:56]} g6 {[%emt 0:01:32]} 11. Bb2 {[%emt 0:06:51]} Na6 {[%emt 0:03:05]} 12. Bc2 {[%emt 0:06:31]} c6 {[%emt 0:03:24]} 13. dxc6 {[%emt 0:04:03]} bxc6 {[%emt 0:00:05]} 14. Qe2 {[%emt 0:00:52]} Bh3 {[%emt 0:05:35]} 15. O-O-O {[%emt 0:04:25]} Qb6 {[%emt 0:06:12]} 16. Rhe1 {[%emt 0:00:36]} Rfb8 {[%emt 0:05:49]} 17. Qe3 {[%emt 0:00:11]} Qxe3 {[%emt 0:10:24]} 18. Rxe3 {[%emt 0:00:12]} Bg4 {[%emt 0:05:02]} 19. Rde1 {[%emt 0:02:09]} Bf8 {[%emt 0:04:03]} 20. Kb1 {[%emt 0:01:20]} Nc5 {[%emt 0:02:28]} 21. Ka2 {[%emt 0:00:05]} Bh6 {[%emt 0:00:49]} 22. Rc3 {[%emt 0:00:01]} Ng7 {[%emt 0:01:48]} 23. h3 {[%emt 0:05:36]} Bd7 {[%emt 0:02:14]} 24. g4 {[%emt 0:03:07]} Nge6 {[%emt 0:00:11]} 25. Bd1 {[%emt 0:02:33]} Rb7 {[%emt 0:06:55]} 26. Nb1 {[%emt 0:01:57]} Rab8 {[%emt 0:00:16]} 27. h4 {[%emt 0:05:51]} Bf4 {[%emt 0:00:09]} 28. g5 {[%emt 0:00:13]} Na4 {[%emt 0:02:59]} 29. Rd3 {[%emt 0:01:13]} Nxb2 {[%emt 0:00:59]} 30. Kxb2 {[%emt 0:00:07]} Nc5 {[%emt 0:03:30]} 31. Rxd6 {[%emt 0:00:17]} Be6 {[%emt 0:02:41]} 32. Nbd2 {[%emt 0:01:16]} Kf8 {[%emt 0:00:37]} 33. Kc3 {[%emt 0:00:49]} Rb6 {[%emt 0:00:47]} 34. b4 {[%emt 0:00:44]} axb4+ 35. axb4 {[%emt 0:00:01]} Nd7 {[%emt 0:00:58]} 36. c5 {[%emt 0:01:22]} Rxb4 {[%emt 0:00:18]} 37. Rxc6 {[%emt 0:00:01]} R4b5 {[%emt 0:00:33]} 38. Nc4 {[%emt 0:02:25]} Nxc5 {[%emt 0:01:20]} 39. Nfxe5 {[%emt 0:00:33]} Nd7 {[%emt 0:01:03]} 40. Nd3 {[%emt 0:01:21]} Bxc4 {[%emt 0:00:28]} 41. Rxc4 {[%emt 0:02:23]} Be5+ {[%emt 0:03:59]} 42. Nxe5 {[%emt 0:02:59]} Nxe5 {[%emt 0:00:05]} 43. Rc7 {[%emt 0:00:12]} Rb1 {[%emt 0:01:12]} 44. Kd2 {[%emt 0:04:54]} R8b2+ {[%emt 0:04:51]} 45. Kc3 {[%emt 0:08:14]} Rxf2 {[%emt 0:02:20]} 46. Ra7 {[%emt 0:06:42]} Rc1+ {[%emt 0:01:01]} 47. Kb3 {[%emt 0:01:37]} Nd3 {[%emt 0:01:06]} 0-1